{"text_format":"3","workbook":"xlsx","n_sheets":9,"sheets":["TÄRKEÄT PVM","Vuosi häihin","Puolisen vuotta häihin","3-4 kuukautta häihin","2 kuukautta häihin","Muutama viikko häihin","Edellisenä päivänä","Hääpäivänä","Häiden jälkeen"],"not_rendered":{"defined_names":9,"comments":1},"read":"whole","date_system":"1900"}

{"sheet":"TÄRKEÄT PVM","index":0,"n_rows":23,"n_cols":9,"rows_kept":23,"merged":[[0,0,0,8],[1,0,1,8]]}
["HÄIDEN VUOSIAIKATAULU"]
["Tässä vuosiaikataulu häiden suunnittelua varten. Lisää hääpäivä sarakkeeseen. Pohja näyttää sinulle, missä aikataulussa mitäkin pitää tehdä."]
[]
["SYÖTÄ HÄÄPÄIVÄ ALAPUOLELLE:",{"$f":"'Vuosi häihin'!A1","v":"VUOSI HÄIHIN:"},{"$f":"'Puolisen vuotta häihin'!A1","v":"PUOLISEN VUOTTA HÄIHIN"},{"$f":"'3-4 kuukautta häihin'!A1","v":"3 - 4 KUUKAUTTA HÄIHIN:"},{"$f":"'2 kuukautta häihin'!A1","v":"2 KUUKAUTTA HÄIHIN"},{"$f":"'Muutama viikko häihin'!A1","v":"MUUTAMA VIIKKO HÄIHIN"},{"$f":"'Edellisenä päivänä'!A1","v":"EDELLISENÄ PÄIVÄNÄ"},{"$f":"Hääpäivänä!A1","v":"HÄÄPÄIVÄNÄ"},{"$f":"'Häiden jälkeen'!A1","v":"HÄIDEN JÄLKEEN"}]
["2008-12-01",{"$f":"IF($A$5<=0,\"\",$A$5-365)","v":"2007-12-02"},{"$f":"IF($A$5<=0,\"\",$A$5-180)","v":"2008-06-04"},{"$f":"IF($A$5<=0,\"\",$A$5-100)","v":"2008-08-23"},{"$f":"IF($A$5<=0,\"\",$A$5-60)","v":"2008-10-02"},{"$f":"IF($A$5<=0,\"\",$A$5-42)","v":"2008-10-20"},{"$f":"IF($A$5<=0,\"\",$A$5-1)","v":"2008-11-30"},{"$f":"IF($A$5<=0,\"\",$A$5)","v":"2008-12-01"},{"$f":"IF($A$5<=0,\"\",$A$5+1)","v":"2008-12-02"}]
["MUISTETTAVAA:","Häiden tyyli","Hääpaikan varaus","Kutsukortit","Avioliiton esteiden tutkinta ja kuulutukset","Vihkisormusten nouto","Syö kevyesti, vältä alkoholia ja suolaisia ruokia","Muista rakkaus, keskinäinen kunnioitus!","Juhlapaikan siivous"]
[null,"Päivämäärä","Tärkeimmät vieraat: kerro hääpäivämäärä","Vihkisormukset","Postita kutsut","Tarkista majoitukset","Kiitokset tukijoukoille","Hyvä aamiainen","Pukujen pesetys ja palautus"]
[null,"Hääbudjetti","Päätös pitopalvelusta","Tapaaminen papin/kanttorin kanssa","Tarkista varaukset ja päiväm.","Pitopalvelulle lopullinen vierasmäärä","Hääjuhlapaikan koristelu","Soita puhelu tulevalle aviopuolisollesi","Hääkuvat ja kiitoskortit"]
[null,"Alustava vieraslista","Morsiustytöt/\nsulhaspojat","Vihkitilaisuus: musiikkia vai runo?","Hääpäivän tarkka ohjelma","Hääpukujen sovitus","Tienvarsikyltit paikoilleen","Morsiamen kampaus ja meikki","Kiitoskorttien postitus"]
[null,"Hääkansio","Morsiuspuku","Hääjuhla/jatkot: musiikki","Vaiheiden läpikäynti","Koristeet ja tienvarsikyltit?","Vaihtovaatteet paikoilleen","Hätävarustus","Illanistujaiset tukijoukoille kiitokseksi"]
[null,"Työnjako","Sulhasen puku","Hääkakku","Pöytäkartta","Lahjat kaasolle ja bestmanille","Aamiaistarpeet hääpäivälle","Kukat"]
[null,"Kirkon varaus","Hääväen kuljetukset","Ruoka/kahvitarjoilu OK?","Kukkien tilaus","Huomenlahjat?","Morsiamen kynsien hoito","Vihkipaikan koristelu"]
[null,"Pappi/kanttori/siviili-vihkimisen toimittaja","Hääparin kulkuneuvo","Lastenhoitaja","Ohjelmalehtisten tulostus","Rentoutushoidot?","Matkalaukkujen pakkaus","Varaa aikaa pukeutumiseen"]
[null,"Juhlatilavaihtoehdot","Tanssikurssi","Lahjatoivelista","Koristelu?",null,"Tarkista passit ja matkaliput","Häävalokuvaus"]
[null,"Tarjoilut/pitopalvelu","Morsiussviitti","Morsiamen alusvaatteet","Pitkämatkalaiset?",null,"Herätyskellot","Sormukset!"]
[null,"Kaaso ja bestman","Varaa häämatka","Hääpukujen hankinta","Iäkkäät vieraat?",null,null,"Varaa aikaa siirtymisiin"]
[null,"Muu ydinjoukko","Passit","Hääpäivän kampaaja/\nkosmetologi","Lapsivieraat?",null,null,"Pidä hauskaa!"]
[null,"Seremoniamestari","Kotisivu","Kasvo-/vartalo- ja jalkahoidot","Askartelut"]
[null,"Orkesteri",null,"Laihdutus loppuu","Asusteet"]
[null,"Valo/videokuvaaja",null,null,"Häiden jatkot?"]
[null,"Alustavasti mieti hääpukuja"]
[null,"Hiusten kasvatus"]
[null,"Maltillinen laihdutus"]

{"sheet":"Vuosi häihin","index":1,"n_rows":35,"n_cols":6,"rows_kept":35,"merged":[[2,1,2,7],[4,1,4,7],[6,1,6,7],[8,1,8,7],[10,1,10,7],[12,1,12,7],[14,1,14,7],[16,1,16,7],[18,1,18,7],[20,1,20,7],[22,1,22,7],[24,1,24,7],[26,1,26,7],[28,1,28,7],[30,1,30,7],[32,1,32,7],[34,1,34,7]]}
["VUOSI HÄIHIN:",{"$nulls":4},{"$f":"'TÄRKEÄT PVM'!B5","v":"2007-12-02"}]
[]
[null,"Onneksi olkoon! Olette löytäneet toisenne ja aloittamassa oman suuren rakkauden juhlanne suunnittelun. Miettikää mikä juuri teitä yhdistää, minkälaisia juuri te olette. Häiden tyyli vaikuttaa ratkaisevasti juhlapaikan ja yksityiskohtien valintaan. Kesän lämmössä voi järjestää häät vaikka rantakalliolla, lumilinnahäät taas tarvitsevat talvea. Hulvattomasta ideoinnista voi syntyä täysin omannäköiset juhlat."]
[]
[null,"Puhukaa myös siitä, kuinka paljon häästressiä kestätte. Jos elämä on jo valmiiksi täyttä, tarvitaanko täydellisiä mahtihäitä? Kauniin vihkimisen voi järjestää myös yksinkertaisesti ja vähin vaivoin."]
[]
[null,"Valitkaa muutama päivämäärävaihtoehto ja neuvotelkaa niiden kanssa, joiden ehdottomasti haluatte olevan mukana."]
[]
[null,"Päättäkää hääbudjetin raameista ja rahoituksesta. Avustavatko vanhemmat vai maksetaanko kaikki itse? Ikimuistoisesti voi naimisiin mennä halvalla tai kalliilla."]
[]
[null,"Määrittäkää, kuinka suuret häät ovat kyseessä. Kutsutaanko kumminkaimat vai vain ne, joilla on ollut erityinen merkitys hääparin elämässä? Alustava vieraslista kannattaa pitää vielä pienen piirin tietona."]
[]
[null,"Perustakaa hääkansio, missä kaikki häihin liittyvät paperit, kuten esitteet, tarjouspyynnöt ja sopimukset ovat samassa paikassa. Päättäkää myös keskinäisestä työnjaostanne."]
[]
[null,"Varatkaa kirkko tai muu vihkipaikka. Mitä tärkeämpää on vihkiminen juuri tiettynä päivänä tietyssä paikassa, sitä tärkeämpää on olla ajoissa liikenteessä. Parhaimman hääsesongin aikana suosituimmat kirkot ovat varattuja paljon etukäteen."]
[]
[null,"Varatkaa pappi tai siviilivihkimisen toimittaja sekä kanttori."]
[]
[null,"Selvittäkää eri juhlatilojen vaihtoehtoja ja kun löydätte mieleisen, varatkaa se. Kaikki sopimukset kannattaa tehdä kirjallisina."]
[]
[null,"Vertailkaa tarjoiluvaihtoehtoja eri pitopalveluyrittäjiltä. Vaikka päätyisitte hoitamaan hääruuat ja/tai kahvitukset omin voimin, tarjoiluhenkilökuntaa tarvitaan silti."]
[]
[null,"Pyytäkää toivomianne ihmisiä kaasoksi ja bestmaniksi. Tässä vaiheessa kannattaa väärinkäsitysten välttämiseksi puhua myös niistä odotuksista, mitä näihin kunniatehtäviin liittyy. Etsikää ydinjoukko hääjärjestelyihin ja sopikaa työnjaosta."]
[]
[null,"Kuka toimii häissänne seremoniamestarina? Varatkaa mahdollinen juontaja."]
[]
[null,"Varatkaa mahdollinen orkesteri, etenkin jos häät ovat kesällä."]
[]
[null,"Jos haluatte häihin valo- tai videokuvaajan, tehkää varaus nyt. Myös valokuvaamoaika hääkuvaa varten kannattaa jo varata."]
[]
[null,"Aloittakaa hääpukujen  miettiminen, vaikka niitä ei vielä kannata hankkiakaan. Koko, maku ja valikoimat saattavat vielä ratkaisevasti muuttua ennen häitä."]
[]
[null,"Aloita hiusten kasvatus, jos haluat lisää vaihtoehtoja morsiuskampaukseen."]
[]
[null,"Jos ajattelitte olla hoikempia häissä, maltillinen laihdutus kannattaa aloittaa nyt. Hyvä kunto ei koskaan ole pahitteeksi, joten nyt on hyvä aika aloittaa yhteinen liikuntaharrastus, joka lähentää teitä."]

{"sheet":"Puolisen vuotta häihin","index":2,"n_rows":29,"n_cols":6,"rows_kept":29,"merged":[[2,1,2,7],[4,1,4,7],[6,1,6,7],[8,1,8,7],[10,1,10,7],[12,1,12,7],[14,1,14,7],[16,1,16,7],[18,1,18,7],[20,1,20,7],[22,1,22,7],[24,1,24,7],[26,1,26,7],[28,1,28,7]]}
["PUOLISEN VUOTTA HÄIHIN",{"$nulls":4},{"$f":"'TÄRKEÄT PVM'!C5","v":"2008-06-04"}]
[]
[null,"Kiireisin aika on edessä. Jos jo nyt ahdistaa, vielä ehtii yksinkertaistamaan häitä."]
[]
[null,"Varatkaa hääpaikka, jos ette ole sitä vielä tehneet."]
[]
[null,"Pyytäkää tärkeimpiä vieraita varaamaan hääpäivä kalentereistaan, etenkin ulkomailla asuvia."]
[]
[null,"Päättäkää pitopalvelu tai muu ruokatarjoilun järjestämistapa ja sopikaa tarkasti, mitä pakettiin kuuluu. Varatkaa tarvittava määrä henkilökuntaa myös tarjoiluun ja siivoukseen."]
[]
[null,"Pyytäkää mahdollisia morsiustyttöjä ja sulhaspoikia tehtäviinsä. Muistattehan, että hääpari vastaa häälasten vaatettamisesta."]
[]
[null,"Aloittakaa morsiuspuvun etsintä tai tekeminen."]
[]
[null,"Sulhasen puvun etsiminen kannattaa aloittaa myös, oli se sitten omaksi tai vuokralle."]
[]
[null,"Järjestäkää hääväen kuljetukset joko linja-autolla, takseilla tai kimppakyydeillä."]
[]
[null,"Varatkaa hääparin kulkuneuvo hääpäiväksi, on se sitten amerikanrauta, hevoskärryt tai vene."]
[]
[null,"Jos tanssikurssille on tarvetta, kannattaa aloittaa harjoittelu. "]
[]
[null,"Varatkaa hääyötä varten morsiussviitti."]
[]
[null,"Varatkaa häämatka, ennen kuin häiden kohoavat kustannukset alkavat hirvittää."]
[]
[null,"Varmistakaa, että passit ovat voimassa koko häämatkan ajan."]
[]
[null,"Perustakaa häiden kotisivu näppärää tiedottamista varten."]

{"sheet":"3-4 kuukautta häihin","index":3,"n_rows":33,"n_cols":6,"rows_kept":33,"merged":[[2,1,2,7],[4,1,4,7],[6,1,6,6],[8,1,8,7],[10,1,10,7],[12,1,12,7],[14,1,14,7],[16,1,16,7],[18,1,18,7],[20,1,20,7],[22,1,22,7],[24,1,24,7],[26,1,26,7],[28,1,28,7],[30,1,30,7],[32,1,32,7]]}
["3 - 4 KUUKAUTTA HÄIHIN:",{"$nulls":4},{"$f":"'TÄRKEÄT PVM'!D5","v":"2008-08-23"}]
["    "]
[null,"Nauttikaa tästä ajasta ja yhteisestä tekemisestä!"]
[]
[null,"Suunnitelkaa kutsukortit Microsoft ohjelmalla ja tulostakaa koevedoksia."]
[]
[null,"Tilatkaa vihkisormukset."]
[]
[null,"Sopikaa tapaaminen papin ja kanttorin kanssa. Päättäkää vihkikaavasta ja muusta ohjelmasta kirkossa. Valitkaa kanttorin kanssa häämarssi sekä muu urkumusiikki kirkossa."]
[]
[null,"Miettikää, haluatteko vihkimiseen musiikkiesityksen tai runonlausuntaa."]
[]
[null,"Valitkaa häävalssi ja muu musiikki hääjuhlaan ja jatkoille. Kuka huolehtii taustamusiikista?"]
[]
[null,"Tilatkaa hääkakku."]
[]
[null,"Varmistakaa että ruoka- ja kahvitarjoilu on järjestyksessä. Muistakaa myös erilaiset erikoisruokavaliot."]
[]
[null,"Varatkaa häihin lastenhoitaja."]
[]
[null,"Laatikaa lahjatoivelista tavarataloon ja pyytäkää ilmoittautumisten vastaanottajaa mainitsemaan listasta kysyjille."]
[]
[null,"Morsian hankkii neutraalit alusvaatteet ennen hääpukujen sovittamista"]
[]
[null,"Hankkikaa hääpuvut tai varatkaa vuokrapuvut, muistakaa myös päällystakit, kengät ja laukut."]
[]
[null,"Pukujen hankkimisen jälkeen laihdutus loppuu."]
[]
[null,"Morsiuskampausta ja meikkiä varten varataan ajat hääpäivälle, koemeikkiä ja kampausta varten aiemmaksi."]
[]
[null,"Varatkaa tarvittavat kasvo-, vartalo- ja jalkahoidot sekä manikyyrit. Aloita tarvittaessa kynsien kasvatus."]
[]
[null,"Suunnitelkaa myös häiden jälkeistä elämää, ettei ison urakan jälkeen valtaa tyhjyyden tunne. "]

{"sheet":"2 kuukautta häihin","index":4,"n_rows":33,"n_cols":6,"rows_kept":33,"merged":[[2,1,2,7],[4,1,4,6],[6,1,6,7],[8,1,8,7],[10,1,10,7],[12,1,12,7],[14,1,14,7],[16,1,16,7],[18,1,18,7],[20,1,20,7],[22,1,22,7],[24,1,24,7],[26,1,26,7],[28,1,28,7],[30,1,30,7],[32,1,32,7]]}
["2 KUUKAUTTA HÄIHIN",{"$nulls":4},{"$f":"'TÄRKEÄT PVM'!E5","v":"2008-10-02"}]
[]
[null,"Pitäkää hyvää huolta itsestänne ja toisistanne"]
[]
[null,"Avioliiton esteiden tutkinta ja kuulutukset"]
[]
[null,"Postittakaa kutsut, liittäkää mukaan kartta sekä ohjeet, kuinka päästä paikalle sekä autolla että julkisilla kulkuvälineillä. Onhan juhlapaikalla riittävästi parkkipaikkoja?"]
[]
[null,"Tarkistakaa, että kaikki varaukset ovat voimassa ja päivämäärät täsmäävät "]
[]
[null,"Suunnitelkaa hääpäivän tarkka ohjelma, jossa on kuitenkin joustovaraa. Yllättäviä tapahtumia sattuu, ja usein hyvät häät muistetaankin juuri kommelluksista."]
[]
[null,"Käykää jokainen vaihe läpi niin, että jokaiselle työlle kirkon koristelusta juhlapaikan siivoamiseen on tekijänsä"]
[]
[null,"Tehkää alustava pöytäkartta ja paikkakortit."]
[]
[null,"Tilatkaa kukat: morsiuskimppu, heittokimppu, napinläpikukka sulhaselle sekä bestmanille, morsiusneitojen kukat sekä kukkakoristeet vihki- ja juhlapaikoille."]
[]
[null,"Tulostakaa ohjelmalehtiset kirkkoon, menut ja hääleikkeihin tarvittavat ohjeet ja laulujen sanat"]
[]
[null,"Onko juhlatilojen ja auton koristelu hoidossa?"]
[]
[null,"Onhan pitkämatkalaisten matka- ja majoitusasiat kunnossa?"]
[]
[null,"Onko iäkkäille vieraille sopivia tuoleja ja rauhallisempia paikkoja levähtämiseen?"]
[]
[null,"Entä onko lapsivieraat huomioitu? "]
[]
[null,"Hääkarkkien, riisipussien ja koristeiden askartelua"]
[]
[null,"Morsian varmistaa, että kaikki asusteet sopivat puvun tyyliin. "]
[]
[null,"Onko häiden jatkoille valittu paikka ja tarjoilut?"]

{"sheet":"Muutama viikko häihin","index":5,"n_rows":19,"n_cols":6,"rows_kept":19,"merged":[[2,1,2,7],[4,1,4,7],[6,1,6,7],[8,1,8,7],[10,1,10,7],[12,1,12,7],[14,1,14,7],[16,1,16,7],[18,1,18,7]]}
["MUUTAMA VIIKKO HÄIHIN",{"$nulls":4},{"$f":"'TÄRKEÄT PVM'!F5","v":"2008-10-20"}]
[]
[null,"Nyt ollaan loppusuoralla, pitäkää hyvästä tunnelmasta huolta!"]
[]
[null,"Sulhanen hakee vihkisormukset ja panee ne varmaan, mutta muistettavaan talteen."]
[]
[null,"Tarkistakaa, että ilmoittautuneiden pitkänmatkalaisten majoitukset hoituvat."]
[]
[null,"Kertokaa pitopalvelulle lopullinen vierasmäärä."]
[]
[null,"Morsian ja sulhanen kumpikin pukeutuvat koko hääasuunsa ja tarkistavat että kaikki on kunnossa kenkiä, alusvaatteita, laukkua ja koruja myöten. Morsiuskengillä kannattaa harjoitella kävelyä ja häävalssia kotosalla."]
[]
[null,"Ovathan kaikki koristeet ja tienvarsikyltit tekeillä?"]
[]
[null,"Kauneus- ja rusketushoitojen lisäksi rentoutushoidoille voi olla käyttöä."]
[]
[null,"Hankkikaa lahjat kaasolle ja bestmanille."]
[]
[null,"Onko huomenlahjat valmiina?"]

{"sheet":"Edellisenä päivänä","index":6,"n_rows":25,"n_cols":6,"rows_kept":25,"merged":[[2,1,2,7],[4,1,4,7],[6,1,6,7],[8,1,8,7],[10,1,10,7],[12,1,12,7],[14,1,14,7],[16,1,16,7],[18,1,18,7],[20,1,20,7],[22,1,22,7],[24,1,24,7]]}
["EDELLISENÄ PÄIVÄNÄ",{"$nulls":4},{"$f":"'TÄRKEÄT PVM'!G5","v":"2008-11-30"}]
[]
[null,"Olkaa iloisia, että vielä on kokonainen vuorokausi aikaa: päivässä ehtii tehdä ihmeitä."]
[]
[null,"Tänään kannattaa syödä kevyesti ja välttää alkoholia ja suolaisia ruokia turvotuksen vuoksi. "]
[]
[null,"Kiittäkää jo etukäteen kaikkia tärkeän juhlanne järjestelyihin aikaansa uhranneita, etenkin kaasoa ja bestmaniä."]
[]
[null,"Hoitakaa hääjuhlapaikan koristelu."]
[]
[null,"Huolehtikaa, että tienvarsikyltit tulevat paikoilleen."]
[]
[null,"Viekää vaihtovaatteet sinne, missä haluatte vaihtaa pois hääpuvuistanne. Muistakaa myös vaihtokengät, sukat ja alusvaatteet. Morsiamella kannattaa kaiken varalta olla myös toiset, mukaviksi havaitut juhlakengät häissä mukana."]
[]
[null,"Tarkistakaa, että kaapissa on hääpäivälle hyvät aamiaistarpeet."]
[]
[null,"Morsian tarkastaa kynsien kunnon: jos kynnet pitää lakata, tee se vähintään pari tuntia ennen nukkumaan menoa, ettei kynsiin painaudu lakanankuvia."]
[]
[null,"Pakatkaa laukut hääyötä varten. Jos lähdette suoraan häämatkalle, tarkistakaa vielä, että passit ja matkaliput ovat mukana  sekä huomenlahjat."]
[]
[null,"Asettakaa monta herätyskelloa soimaan tarpeeksi ajoissa."]
[]
[null,"Menkää niin aikaisin nukkumaan kuin mahdollista! Hyvin levänneenä on helppo olla tyyni ja hehkuva tärkeänä päivänä."]
[]
[null,"Kerro tulevalle puolisollesi, miksi on hienoa, kun saat huomenna mennä juuri hänen kanssaan naimisiin"]

{"sheet":"Hääpäivänä","index":7,"n_rows":25,"n_cols":6,"rows_kept":25,"merged":[[2,1,2,7],[4,1,4,7],[6,1,6,7],[8,1,8,7],[10,1,10,7],[12,1,12,7],[14,1,14,7],[16,1,16,7],[18,1,18,7],[20,1,20,7],[22,1,22,7],[24,1,24,7]]}
["HÄÄPÄIVÄNÄ",{"$nulls":4},{"$f":"'TÄRKEÄT PVM'!H5","v":"2008-12-01"}]
[]
[null,"Herätkää ajoissa ja oikealla jalalla! Antakaa rakkauden ja keskinäisen kunnioituksen näkyä erityisesti tänä ikimuistoisena päivänä."]
[]
[null,"Syökää hyvä aamiainen: tulossa on pitkä päivä."]
[]
[null,"Puhukaa ainakin puhelimessa keskenänne. Seuraavan kerran kun pääsette taas puhumaan kaksin olette aviopari."]
[]
[null,"Morsiamen kampaus ja meikki."]
[]
[null,"Huulipuna, puuteri, nenäliinat, hakaneulat, kynät, paperit, roudarinteippi ja muu hätävarustus mukaan."]
[]
[null,"Kukkien haku: morsiuskimppu, heittokimppu, sulhasen ja bestmanin napinläpikukat, vihkipaikan ja juhlapaikan kukkakoristeet."]
[]
[null,"Vihkipaikan koristelu heti kun paikalle pääsee."]
[]
[null,"Varatkaa pukeutumiseen runsaasti aikaa. Varokaa meikki- ja ruokatahroja. Syökää ennen pukeutumista."]
[]
[null,"Häävalokuvaus"]
[]
[null,"Onhan sormukset mukana?"]
[]
[null,"Varatkaa riittävästi aikaa siirtymisiin kirkkoon."]
[]
[null,"Pitäkää hauskaa, ottakaa rennosti ja nauttikaa tästä ainutlaatuisesta päivästänne!"]

{"sheet":"Häiden jälkeen","index":8,"n_rows":13,"n_cols":6,"rows_kept":13,"merged":[[2,1,2,7],[4,1,4,7],[6,1,6,7],[8,1,8,7],[10,1,10,7],[12,1,12,7]]}
["HÄIDEN JÄLKEEN",{"$nulls":4},{"$f":"'TÄRKEÄT PVM'!I5","v":"2008-12-02"}]
[]
[null,"Juhlapaikka on siisti ja kaikki kunnossa?"]
[]
[null,"Huolehtikaa pukujen pesetyksestä ja vuokrapukujen palautuksesta."]
[]
[null,"Valitkaa parhaat hääkuvat ja tilatkaa kiitoskortit."]
[]
[null,"Postittakaa kiitoskortit."]
[]
[null,"Järjestäkää illanistujaiset lähipiirille kiitokseksi avusta. Samalla voi katsella kuvia sekä häistä että häämatkalta."]
[]
[null,"Hengähtäkää hetkeksi ja tehkää uusia jännittäviä suunnitelmia yhteiselle tulevaisuudellenne. Onnea matkaan!"]